lending/lending_fUSD_20250218
["ID","MTS","AMOUNT","RATE_DAILY","PERIOD"]
[353528921,1739898632765,-179.67,0.00016902,2]
[353528922,1739898632778,-252.05,0.00016938,2]
[353528924,1739898632788,-200.0,0.00017058,2]
[353528926,1739898632797,-474.82,0.00017074,2]
[353528928,1739898632806,-241.02825775,0.00017116,30]
[353529422,1739898637922,-124.77174225,0.00017116,30]
[353529424,1739898637932,-487.8009577,0.00017118,2]
[353529426,1739898637944,-708.55772326,0.00017118,2]
[353529428,1739898637957,-32878.63131904,0.00017118,2]
[353529431,1739898637967,-3032.98,0.00017118,2]
[353529433,1739898637977,-12141.81,0.00017141,2]
[353529435,1739898637987,-166.1,0.00017296,2]
[353529437,1739898637996,-553.49,0.00017488,2]
[353529439,1739898638005,-4000.0,0.00017551,2]
[353529441,1739898638015,-170.64,0.000176,2]
[353529443,1739898638025,-5800.0,0.00017695,2]
[353529444,1739898638035,-153.0,0.00017703,2]
[353529446,1739898638044,-153.0,0.00017703,2]
[353529448,1739898638053,-5800.0,0.00017703,2]
[353529450,1739898638063,-153.0,0.00017704,2]
[353529452,1739898638072,-153.0,0.00017704,2]
[353529454,1739898638081,-153.0,0.00017704,2]
[353529456,1739898638091,-153.0,0.00017704,2]
[353529458,1739898638100,-153.0,0.00017704,2]
[353529460,1739898638110,-153.0,0.00017704,2]
[353529462,1739898638120,-153.0,0.00017704,2]
[353529464,1739898638129,-5800.0,0.00017712,2]
[353529466,1739898638138,-182.71,0.00017844,2]
[353529468,1739898638148,-1000.0,0.00017987,2]
[353529470,1739898638158,-10000.0,0.00018,2]
[353529472,1739898638168,-150.0,0.00018,2]
[353529474,1739898638177,-150.0,0.00018,2]
[353529476,1739898638187,-150.0,0.00018,2]
[353529478,1739898638196,-150.0,0.00018,2]
[353529480,1739898638206,-200.0,0.00018242,2]
[353529482,1739898638215,-170.21,0.00018265,2]
[353529484,1739898638224,-533.70054203,0.00018308,2]
[353529486,1739898638234,-200.981,0.00018392,2]
[353529488,1739898638244,-300.0,0.00018511,2]
[353529490,1739898638254,-8633.24,0.00018533,2]
[353529493,1739898638263,-150.99,0.00018533,2]
[353529495,1739898638273,-267.2,0.00018533,2]
[353529497,1739898638285,-150.0,0.00018547,2]
[353529499,1739898638294,-3917.0,0.00018547,2]
[353529501,1739898638303,-1009.0,0.00018547,2]
[353529503,1739898638313,-683.685,0.00018547,2]
[353529505,1739898638322,-150.4,0.00018572,2]
[353529506,1739898638333,-200.0,0.0001859,2]
[353529508,1739898638343,-154.58,0.000186,2]
[353529510,1739898638353,-749.65,0.00018703,2]
[353529512,1739898638362,-221.0791,0.0001894,2]
[353529515,1739898638372,-150.0,0.00019,2]
[353529516,1739898638381,-150.0,0.00019,2]
[353529518,1739898638391,-1980.26,0.00019085,7]
[353529520,1739898638401,-1980.26,0.00019085,7]
[353529522,1739898638410,-1980.26,0.00019085,7]
[353529524,1739898638419,-1980.26,0.00019085,7]
[353529526,1739898638429,-500.0,0.00019178,2]
[353529528,1739898638438,-500.0,0.00019178,2]
[353529531,1739898638447,-500.0,0.00019178,2]
[353529533,1739898638456,-500.0,0.00019178,2]
[353529535,1739898638466,-500.0,0.00019178,2]
[353529537,1739898638475,-500.0,0.00019178,2]
[353529539,1739898638484,-500.0,0.00019178,2]
[353529541,1739898638493,-311.05444714,0.00019178,2]
[353529543,1739898638503,-2000.0,0.00019178,2]
[353529545,1739898638513,-200.0,0.000192,2]
[353529547,1739898638522,-2000.0,0.00019226,2]
[353529550,1739898638532,-2000.0,0.00019275,2]
[353529552,1739898638544,-2000.0,0.00019323,2]
[353529554,1739898638554,-154.4221506,0.00019331,2]
[353529555,1739898638563,-1980.26,0.00019359,7]
[353529557,1739898638573,-1980.26,0.00019359,7]
[353529560,1739898638582,-225.3695,0.00019368,2]
[353529561,1739898638591,-2000.0,0.00019371,2]
[353529562,1739898638601,-64199.68167051,0.000194,3]
[353529563,1739898638617,-1072.87776473,0.000194,3]
[353529564,1739898638628,-27201.73918289,0.000194,3]
[353529565,1739898638642,-987.54270914,0.000194,3]
[353529566,1739898638653,-9505.7,0.000194,3]
[353529568,1739898638669,-837.40192961,0.000194,3]
[353529570,1739898638681,-1145.19149778,0.000194,3]
[353529573,1739898638693,-8283.79901343,0.000194,3]
[353529575,1739898638704,-2000.0,0.0001942,2]
[353529577,1739898638713,-2000.0,0.00019468,2]
[353529578,1739898638723,-302.0,0.00019488,2]
[353529580,1739898638731,-1103.63390283,0.00019516,2]
[353529583,1739898638743,-1629.83238255,0.00019516,2]
[353529585,1739898638754,-1230.45772176,0.00019516,2]
[353529587,1739898638765,-555.26247137,0.00019516,2]
[353529589,1739898638781,-418.64,0.00019516,2]
[353529727,1739898640033,-797.49998,0.00019516,2]
[353529734,1739898640086,-1730.84596,0.00019516,2]
[353529736,1739898640098,-23032.16718149,0.00019516,2]
[353529738,1739898640108,-2000.0,0.00019517,2]
[353529740,1739898640117,-161.17350518,0.00019523,2]
[353529742,1739898640127,-2714.79128816,0.00019526,2]
[353529744,1739898640136,-1223.69840887,0.00019526,2]
[353529746,1739898640145,-150.0,0.00019563,2]
[353529748,1739898640154,-1787.0,0.00019563,2]
[353529750,1739898640164,-455.352,0.00019563,2]
[353529752,1739898640173,-2000.0,0.00019565,2]
[353529754,1739898640183,-1223.6984088,0.00019568,2]
[353529756,1739898640193,-500.0,0.00019568,2]
[353529758,1739898640202,-1223.6984088,0.00019609,2]
[353529759,1739898640212,-2000.0,0.00019613,2]
[353529760,1739898640221,-10532.4207987,0.00019616,3]
[353529761,1739898640232,-266.45984744,0.00019616,3]
[353529762,1739898640243,-18875.79183827,0.00019616,3]
[353529763,1739898640255,-735.69460009,0.00019616,3]
[353529764,1739898640264,-1238.55752557,0.00019616,2]
[353529766,1739898640275,-405.555575,0.00019616,2]
[353529768,1739898640287,-516.99237535,0.00019616,2]
[353529771,1739898640302,-34973.04622408,0.00019616,2]
[353529772,1739898640311,-298.801,0.00019616,2]
[353529774,1739898640321,-2911.7662,0.00019616,2]
[353529777,1739898640331,-500.0,0.00019616,2]
[353529779,1739898640340,-259.44479111,0.00019626,2]
[353529780,1739898640350,-221.0,0.00019626,2]
[353529783,1739898640360,-2958.6151,0.00019626,2]
[353529784,1739898640369,-669.9253,0.00019626,2]
[353529786,1739898640378,-9616.0876,0.00019626,2]
[353529788,1739898640387,-1000.0,0.00019626,2]
[353529790,1739898640396,-16213.6781,0.00019626,2]
[353529792,1739898640406,-18604.403,0.00019626,2]
[353529794,1739898640415,-5000.0,0.00019626,2]
[353529796,1739898640425,-2858.7127,0.00019626,2]
[353529798,1739898640434,-150.0,0.00019631,2]
[353529800,1739898640444,-1980.26,0.00019633,7]
[353529802,1739898640453,-1980.26,0.00019633,7]
[353529804,1739898640463,-150.0,0.00019633,2]
[353529806,1739898640472,-150.0,0.00019646,2]
[353529808,1739898640482,-1223.6984088,0.00019651,2]
[353529810,1739898640491,-2000.0,0.00019662,2]
[353529812,1739898640502,-259.44479109,0.00019672,2]
[353529814,1739898640511,-10136.7890282,0.00019683,3]
[353529816,1739898640521,-1223.6984088,0.00019692,2]
[353529818,1739898640530,-20273.5780564,0.00019696,3]
[353529820,1739898640540,-200.0,0.000197,7]
[353529822,1739898640549,-3000.0,0.000197,2]
[353529824,1739898640558,-365.8,0.000197,30]
[353529826,1739898640567,-500.0,0.00019704,2]
[353529828,1739898640576,-30410.3670845,0.00019706,3]
[353529830,1739898640586,-2000.0,0.0001971,2]
[353529832,1739898640594,-202735.780564,0.00019716,3]
[353529834,1739898640603,-388341.153217,0.00019716,3]
[353529836,1739898640612,-52314.34745632,0.00019716,2]
[353529838,1739898640622,-259.44479109,0.00019717,2]
[353529840,1739898640631,-1055.88,0.00019725,2]
[353529842,1739898640640,-1000.0,0.00019725,2]
[353529845,1739898640649,-161.0,0.00019726,3]
[353529847,1739898640659,-501.53281659,0.00019726,3]
[353529849,1739898640668,-500.0,0.00019726,3]
[353529851,1739898640678,-151.0,0.00019726,2]
[353529853,1739898640688,-151.0,0.00019726,2]
[353529855,1739898640698,-151.0,0.00019726,2]
[353529857,1739898640712,-151.0,0.00019726,2]
[353529859,1739898640722,-178.79582,0.00019726,2]
[353529861,1739898640731,-151.0,0.00019726,2]
[353529863,1739898640740,-151.0,0.00019726,2]
[353529865,1739898640750,-151.0,0.00019726,2]
[353529867,1739898640759,-151.0,0.00019726,2]
[353529869,1739898640768,-555.26247137,0.00019726,7]
[353529871,1739898640778,-151.0,0.00019726,2]
[353529873,1739898640790,-151.0,0.00019726,2]
[353529875,1739898640799,-151.0,0.00019726,2]
[353529877,1739898640808,-500.0,0.00019726,3]
[353529879,1739898640818,-500.0,0.00019726,3]
[353529881,1739898640827,-500.0,0.00019726,3]
[353529883,1739898640836,-500.0,0.00019726,3]
[353529885,1739898640845,-500.0,0.00019726,3]
[353529887,1739898640855,-500.0,0.00019726,3]
[353529889,1739898640864,-504.31237359,0.00019726,3]
[353529891,1739898640874,-151.0,0.00019726,2]
[353529893,1739898640884,-151.0,0.00019726,2]
[353529895,1739898640893,-151.0,0.00019726,2]
[353529897,1739898640902,-151.0,0.00019726,2]
[353529899,1739898640912,-151.0,0.00019726,2]
[353529901,1739898640921,-151.0,0.00019726,2]
[353529903,1739898640931,-151.0,0.00019726,2]
[353529905,1739898640940,-151.0,0.00019726,2]
[353529907,1739898640949,-151.0,0.00019726,2]
[353529909,1739898640959,-151.0,0.00019726,2]
[353529911,1739898640969,-151.0,0.00019726,2]
[353529913,1739898640978,-151.0,0.00019726,2]
[353529915,1739898640988,-151.0,0.00019726,2]
[353529917,1739898640997,-167.537347,0.00019726,2]
[353529919,1739898641006,-151.0,0.00019726,2]
[353529921,1739898641016,-500.0,0.00019726,3]
[353529923,1739898641025,-151.0,0.00019726,2]
[353529925,1739898641036,-151.0,0.00019726,2]
[353529927,1739898641046,-151.0,0.00019726,2]
[353529929,1739898641055,-151.0,0.00019726,2]
[353529931,1739898641065,-151.0,0.00019726,2]
[353529933,1739898641074,-151.0,0.00019726,2]
[353529935,1739898641083,-151.509837,0.00019726,2]
[353529937,1739898641093,-151.0,0.00019726,2]
[353529939,1739898641103,-151.0,0.00019726,2]
[353529941,1739898641112,-151.0,0.00019726,2]
[353529943,1739898641121,-500.0,0.00019726,3]
[353529945,1739898641130,-503.96682138,0.00019726,3]
[353529947,1739898641139,-500.0,0.00019726,3]
[353529949,1739898641148,-500.0,0.00019726,3]
[353529951,1739898641158,-530.8890352,0.00019726,3]
[353529953,1739898641167,-500.0,0.00019726,3]
[353529955,1739898641177,-500.0,0.00019726,3]
[353529957,1739898641186,-500.0,0.00019726,3]
[353529959,1739898641195,-500.0,0.00019726,3]
[353529961,1739898641204,-500.0,0.00019726,3]
[353529963,1739898641214,-500.0,0.00019726,3]
[353529965,1739898641224,-500.0,0.00019726,3]
[353529967,1739898641233,-334.955508,0.00019726,2]
[353529969,1739898641242,-376.24519787,0.00019726,3]
[353529971,1739898641252,-334.955508,0.00019726,2]
[353529973,1739898641261,-334.955508,0.00019726,2]
[353529975,1739898641271,-334.955508,0.00019726,2]
[353529977,1739898641281,-151.0,0.00019726,2]
[353529979,1739898641291,-151.0,0.00019726,2]
[353529981,1739898641300,-500.0,0.00019726,3]
[353529983,1739898641310,-500.0,0.00019726,3]
[353529985,1739898641319,-500.0,0.00019726,3]
[353529987,1739898641328,-500.0,0.00019726,3]
[353529989,1739898641338,-500.0,0.00019726,3]
[353529991,1739898641347,-500.0,0.00019726,3]
[353529993,1739898641356,-500.0,0.00019726,3]
[353529995,1739898641365,-500.0,0.00019726,3]
[353529997,1739898641375,-521.77806682,0.00019726,3]
[353529999,1739898641384,-500.0,0.00019726,3]
[353530001,1739898641393,-500.0,0.00019726,3]
[353530003,1739898641402,-406.64357321,0.00019726,3]
[353530005,1739898641411,-633.33247809,0.00019726,3]
[353530007,1739898641420,-500.0,0.00019726,3]
[353530009,1739898641429,-500.0,0.00019726,3]
[353530011,1739898641439,-500.0,0.00019726,3]
[353530013,1739898641448,-500.0,0.00019726,3]
[353530015,1739898641458,-402.35435639,0.00019726,3]
[353530017,1739898641467,-636.71,0.00019726,3]
[353530019,1739898641477,-151.0,0.00019726,2]
[353530021,1739898641486,-151.0,0.00019726,2]
[353530023,1739898641495,-551.83,0.00019726,3]
[353530025,1739898641505,-551.83,0.00019726,3]
[353530027,1739898641514,-551.83,0.00019726,3]
[353530029,1739898641523,-551.83,0.00019726,3]
[353530031,1739898641534,-551.83,0.00019726,3]
[353530033,1739898641543,-551.83,0.00019726,3]
[353530035,1739898641552,-551.83,0.00019726,3]
[353530037,1739898641561,-551.83,0.00019726,3]
[353530039,1739898641570,-551.83,0.00019726,3]
[353530041,1739898641579,-500.0,0.00019726,3]
[353530043,1739898641588,-500.0,0.00019726,3]
[353530045,1739898641597,-500.0,0.00019726,3]
[353530047,1739898641606,-500.0,0.00019726,3]
[353530049,1739898641615,-500.0,0.00019726,3]
[353530051,1739898641624,-500.0,0.00019726,3]
[353530053,1739898641633,-500.0,0.00019726,3]
[353530055,1739898641642,-500.0,0.00019726,3]
[353530056,1739898641651,-500.0,0.00019726,3]
[353530057,1739898641662,-500.0,0.00019726,3]
[353530058,1739898641671,-500.0,0.00019726,3]
[353530059,1739898641680,-500.0,0.00019726,3]
[353530060,1739898641690,-500.0,0.00019726,3]
[353530061,1739898641699,-500.0,0.00019726,3]
[353530062,1739898641712,-500.0,0.00019726,3]
[353530064,1739898641722,-500.0,0.00019726,3]
[353530066,1739898641731,-201.14268297,0.00019726,3]
[353530068,1739898641740,-500.0,0.00019726,3]
[353530070,1739898641750,-393.56929519,0.00019726,3]
[353530072,1739898641760,-500.0,0.00019726,3]
[353530074,1739898641770,-287.93299997,0.00019726,3]
[353530076,1739898641781,-500.0,0.00019726,3]
[353530078,1739898641791,-462.16,0.00019726,3]
[353530080,1739898641801,-500.0,0.00019726,3]
[353530082,1739898641810,-500.0,0.00019726,3]
[353530084,1739898641819,-500.0,0.00019726,3]
[353530086,1739898641829,-500.0,0.00019726,3]
[353530088,1739898641839,-500.0,0.00019726,3]
[353530090,1739898641849,-500.0,0.00019726,3]
[353530092,1739898641858,-500.0,0.00019726,3]
[353530094,1739898641868,-500.0,0.00019726,3]
[353530096,1739898641877,-500.0,0.00019726,3]
[353530098,1739898641886,-151.0,0.00019726,2]
[353530100,1739898641895,-600.69232619,0.00019726,3]
[353530102,1739898641905,-151.0,0.00019726,2]
[353530104,1739898641913,-500.0,0.00019726,3]
[353530106,1739898641923,-500.0,0.00019726,3]
[353530108,1739898641932,-500.0,0.00019726,3]
[353530110,1739898641942,-500.0,0.00019726,3]
[353530112,1739898641951,-500.0,0.00019726,3]
[353530114,1739898641960,-500.0,0.00019726,3]
[353530116,1739898641969,-500.0,0.00019726,3]
[353530118,1739898641979,-500.0,0.00019726,3]
[353530120,1739898641988,-500.0,0.00019726,3]
[353530122,1739898641997,-500.0,0.00019726,3]
[353530124,1739898642008,-421.68694444,0.00019726,3]
[353530126,1739898642019,-500.0,0.00019726,3]
[353530128,1739898642033,-500.0,0.00019726,3]
[353530130,1739898642043,-500.0,0.00019726,3]
[353530132,1739898642053,-192.28455133,0.00019726,3]
[353530134,1739898642062,-151.0,0.00019726,2]
[353530136,1739898642071,-500.0,0.00019726,3]
[353530138,1739898642080,-158.116348,0.00019726,2]
[353530140,1739898642089,-500.0,0.00019726,3]
[353530142,1739898642101,-500.0,0.00019726,3]
[353530144,1739898642110,-305.19622905,0.00019726,3]
[353530146,1739898642120,-500.0,0.00019726,3]
[353530148,1739898642129,-500.0,0.00019726,3]
[353530150,1739898642139,-500.0,0.00019726,3]
[353530152,1739898642149,-500.0,0.00019726,3]
[353530154,1739898642157,-500.0,0.00019726,3]
[353530156,1739898642166,-500.0,0.00019726,3]
[353530158,1739898642175,-158.116348,0.00019726,2]
[353530160,1739898642184,-500.0,0.00019726,3]
[353530162,1739898642193,-253.34964404,0.00019726,3]
[353530164,1739898642209,-500.0,0.00019726,3]
[353530166,1739898642218,-400.15217316,0.00019726,3]
[353530168,1739898642227,-500.0,0.00019726,3]
[353530170,1739898642236,-500.0,0.00019726,3]
[353530172,1739898642245,-500.0,0.00019726,3]
[353530174,1739898642256,-500.0,0.00019726,3]
[353530176,1739898642265,-500.0,0.00019726,3]
[353530178,1739898642275,-500.0,0.00019726,3]
[353530180,1739898642291,-439.625509,0.00019726,2]
[353530182,1739898642302,-500.0,0.00019726,3]
[353530184,1739898642311,-608.09588334,0.00019726,3]
[353530186,1739898642321,-500.0,0.00019726,3]
[353530188,1739898642331,-500.0,0.00019726,3]
[353530190,1739898642340,-500.0,0.00019726,3]
[353530192,1739898642349,-500.0,0.00019726,3]
[353530194,1739898642359,-500.0,0.00019726,3]
[353530196,1739898642368,-500.0,0.00019726,3]
[353530198,1739898642378,-500.0,0.00019726,3]
[353530200,1739898642387,-439.625509,0.00019726,2]
[353530202,1739898642396,-498.7864005,0.00019726,3]
[353530204,1739898642406,-500.0,0.00019726,3]
[353530206,1739898642415,-500.0,0.00019726,3]
[353530208,1739898642425,-500.0,0.00019726,3]
[353530210,1739898642434,-500.0,0.00019726,3]
[353530212,1739898642443,-500.0,0.00019726,3]
[353530214,1739898642452,-500.0,0.00019726,3]
[353530216,1739898642462,-500.0,0.00019726,3]
[353530218,1739898642471,-500.0,0.00019726,3]
[353530220,1739898642480,-500.0,0.00019726,3]
[353530222,1739898642490,-361.78731496,0.00019726,3]
[353530224,1739898642499,-500.0,0.00019726,2]
[353530226,1739898642508,-500.0,0.00019726,2]
[353530228,1739898642518,-500.0,0.00019726,2]
[353530230,1739898642527,-500.0,0.00019726,2]
[353530232,1739898642538,-500.0,0.00019726,2]
[353530234,1739898642549,-500.0,0.00019726,2]
[353530236,1739898642558,-249.53926966,0.00019726,2]
[353530238,1739898642567,-500.0,0.00019726,3]
[353530240,1739898642576,-500.0,0.00019726,3]
[353530242,1739898642586,-500.0,0.00019726,3]
[353530244,1739898642595,-1124.915826,0.00019726,2]
[353530246,1739898642605,-500.0,0.00019726,3]
[353530248,1739898642614,-500.0,0.00019726,3]
[353530250,1739898642624,-500.0,0.00019726,3]
[353530252,1739898642633,-500.0,0.00019726,3]
[353530254,1739898642642,-500.0,0.00019726,3]
[353530256,1739898642653,-401.24756458,0.00019726,3]
[353530258,1739898642663,-1124.915826,0.00019726,2]
[353530260,1739898642673,-500.0,0.00019726,3]
[353530262,1739898642682,-500.0,0.00019726,3]
[353530264,1739898642692,-527.17352968,0.00019726,3]
[353530266,1739898642706,-619.37,0.00019726,3]
[353530268,1739898642716,-500.0,0.00019726,3]
[353530270,1739898642726,-500.0,0.00019726,3]
[353530272,1739898642736,-500.0,0.00019726,3]
[353530276,1739898642746,-500.0,0.00019726,3]
[353530278,1739898642756,-500.0,0.00019726,3]
[353530280,1739898642765,-500.0,0.00019726,3]
[353530282,1739898642774,-500.0,0.00019726,3]
[353530284,1739898642786,-495.02618596,0.00019726,3]
[353530287,1739898642796,-500.0,0.00019726,3]
[353530289,1739898642806,-500.0,0.00019726,3]
[353530291,1739898642815,-500.0,0.00019726,3]
[353530293,1739898642826,-500.0,0.00019726,3]
[353530295,1739898642835,-500.0,0.00019726,3]
[353530297,1739898642845,-500.0,0.00019726,3]
[353530300,1739898642855,-500.0,0.00019726,3]
[353530303,1739898642865,-548.19,0.00019726,3]
[353530306,1739898642875,-500.0,0.00019726,3]
[353530309,1739898642885,-548.19,0.00019726,3]
[353530312,1739898642895,-500.0,0.00019726,3]
[353530315,1739898642905,-548.19,0.00019726,3]
[353530318,1739898642915,-548.19,0.00019726,3]
[353530322,1739898642926,-548.19,0.00019726,3]
[353530326,1739898642936,-548.19,0.00019726,3]
[353530329,1739898642946,-548.19,0.00019726,3]
[353530332,1739898642956,-548.19,0.00019726,3]
[353530335,1739898642966,-548.19,0.00019726,3]
[353530337,1739898642976,-548.19,0.00019726,3]
[353530339,1739898642986,-548.19,0.00019726,3]
[353530342,1739898642996,-548.19,0.00019726,3]
[353530345,1739898643005,-548.19,0.00019726,3]
[353530349,1739898643015,-548.19,0.00019726,3]
[353530352,1739898643025,-548.19,0.00019726,3]
[353530354,1739898643034,-548.19,0.00019726,3]
[353530357,1739898643044,-548.19,0.00019726,3]
[353530360,1739898643054,-548.19,0.00019726,3]
[353530363,1739898643063,-548.19,0.00019726,3]
[353530366,1739898643072,-548.19,0.00019726,3]
[353530369,1739898643082,-548.19,0.00019726,3]
[353530372,1739898643092,-548.19,0.00019726,3]
[353530375,1739898643102,-548.19,0.00019726,3]
[353530376,1739898643111,-548.20193413,0.00019726,3]
[353530378,1739898643121,-500.0,0.00019726,3]
[353530380,1739898643130,-208.18,0.00019726,3]
[353530382,1739898643139,-627.95,0.00019726,3]
[353530384,1739898643149,-627.95,0.00019726,3]
[353530386,1739898643159,-500.0,0.00019726,3]
[353530388,1739898643168,-627.95,0.00019726,3]
[353530390,1739898643178,-500.0,0.00019726,3]
[353530392,1739898643188,-627.95,0.00019726,3]
[353530394,1739898643198,-500.0,0.00019726,3]
[353530396,1739898643207,-627.95,0.00019726,3]
[353530398,1739898643217,-500.0,0.00019726,3]
[353530400,1739898643227,-627.95,0.00019726,3]
[353530402,1739898643236,-627.95,0.00019726,3]
[353530404,1739898643246,-627.95,0.00019726,3]
[353530406,1739898643255,-627.95,0.00019726,3]
[353530408,1739898643265,-627.95,0.00019726,3]
[353530410,1739898643274,-500.0,0.00019726,3]
[353530412,1739898643283,-627.95,0.00019726,3]
[353530414,1739898643293,-627.95,0.00019726,3]
[353530416,1739898643303,-627.95,0.00019726,3]
[353530418,1739898643313,-627.95,0.00019726,3]
[353530420,1739898643323,-627.95,0.00019726,3]
[353530422,1739898643332,-627.95,0.00019726,3]
[353530424,1739898643342,-627.95,0.00019726,3]
[353530426,1739898643352,-627.95,0.00019726,3]
[353530428,1739898643361,-627.95,0.00019726,3]
[353530430,1739898643371,-627.95,0.00019726,3]
[353530432,1739898643381,-627.95,0.00019726,3]
[353530434,1739898643391,-627.95,0.00019726,3]
[353530436,1739898643400,-627.95,0.00019726,3]
[353530438,1739898643410,-628.08107521,0.00019726,3]
[353530440,1739898643419,-814.31,0.00019726,3]
[353530442,1739898643428,-814.31,0.00019726,3]
[353530444,1739898643438,-814.31,0.00019726,3]
[353530446,1739898643447,-814.31,0.00019726,3]
[353530448,1739898643458,-814.31,0.00019726,3]
[353530450,1739898643468,-814.31,0.00019726,3]
[353530452,1739898643478,-814.31,0.00019726,3]
[353530454,1739898643487,-814.31,0.00019726,3]
[353530456,1739898643498,-814.31,0.00019726,3]
[353530459,1739898643508,-814.31,0.00019726,3]
[353530460,1739898643518,-814.31,0.00019726,3]
[353530462,1739898643527,-814.31,0.00019726,3]
[353530465,1739898643537,-814.31,0.00019726,3]
[353530467,1739898643547,-814.31,0.00019726,3]
[353530469,1739898643557,-814.31,0.00019726,3]
[353530471,1739898643567,-814.31,0.00019726,3]
[353530473,1739898643577,-814.31,0.00019726,3]
[353530475,1739898643586,-814.31,0.00019726,3]
[353530477,1739898643596,-814.31,0.00019726,3]
[353530479,1739898643606,-814.31,0.00019726,3]
[353530481,1739898643615,-814.31,0.00019726,3]
[353530483,1739898643625,-814.31,0.00019726,3]
[353530485,1739898643635,-814.31,0.00019726,3]
[353530487,1739898643645,-814.41752528,0.00019726,3]
[353530489,1739898643656,-221.596964,0.00019726,2]
[353530491,1739898643665,-500.0,0.00019726,3]
[353530493,1739898643676,-500.0,0.00019726,3]
[353530495,1739898643686,-627.39305322,0.00019726,3]
[353530497,1739898643697,-721.972813,0.00019726,2]
[353530499,1739898643711,-221.596964,0.00019726,2]
[353530501,1739898643721,-1018.61,0.00019726,3]
[353530503,1739898643731,-1018.61,0.00019726,3]
[353530505,1739898643742,-1018.61,0.00019726,3]
[353530507,1739898643752,-1018.61,0.00019726,3]
[353530509,1739898643762,-1018.61,0.00019726,3]
[353530512,1739898643773,-1018.61,0.00019726,3]
[353530514,1739898643785,-1018.61,0.00019726,3]
[353530516,1739898643796,-1018.61,0.00019726,3]
[353530518,1739898643806,-1018.61,0.00019726,3]
[353530520,1739898643815,-1018.61,0.00019726,3]
[353530522,1739898643825,-151.0,0.00019726,2]
[353530524,1739898643834,-1018.61,0.00019726,3]
[353530526,1739898643844,-1018.61,0.00019726,3]
[353530528,1739898643854,-1018.61,0.00019726,3]
[353530530,1739898643864,-1018.61,0.00019726,3]
[353530532,1739898643874,-1018.61,0.00019726,3]
[353530534,1739898643884,-1018.61,0.00019726,3]
[353530536,1739898643893,-1018.61,0.00019726,3]
[353530538,1739898643903,-1018.61,0.00019726,3]
[353530540,1739898643914,-1018.61,0.00019726,3]
[353530542,1739898643924,-1018.61,0.00019726,3]
[353530544,1739898643934,-1018.61,0.00019726,3]
[353530546,1739898643944,-1018.61,0.00019726,3]
[353530548,1739898643954,-151.0,0.00019726,2]
[353530550,1739898643965,-1018.61,0.00019726,3]
[353530552,1739898643976,-1018.66649364,0.00019726,3]
[353530554,1739898643986,-151.0,0.00019726,2]
[353530556,1739898643997,-500.0,0.00019726,3]
[353530558,1739898644007,-500.0,0.00019726,3]
[353530560,1739898644016,-500.0,0.00019726,3]
[353530562,1739898644026,-500.0,0.00019726,3]
[353530565,1739898644037,-500.0,0.00019726,3]
[353530567,1739898644046,-500.0,0.00019726,3]